bitfinex-derivatives/quotes_SOLF0:USTF0_20250730
["timestamp","ask_amount","ask_price","bid_price","bid_amount"]
[1753885420212,3.15,179.17,179.14,5.5821]
[1753885420213,5.75848497,179.21,179.13,3.26]
[1753885420412,3.15,179.16,179.14,3.26]
[1753885420713,3.15,179.16,179.12,109.7826]
[1753885420714,3.15,179.15,179.12,109.7826]
[1753885420914,3.15,179.2,179.13,3.26]
[1753885421115,5.5812,179.18,179.14,5.5822]
[1753885421318,3.15,179.17,179.16,3.26]
[1753885422111,3.15,179.19,179.16,3.26]
[1753885422312,3.15,179.23,179.16,3.26]
[1753885422615,3.15,179.19,179.16,3.26]
[1753885422816,3.15,179.19,179.13,5.75848497]
[1753885423016,3.15,179.19,179.17,3.26]
[1753885424112,3.15,179.19,179.18,3.26]
[1753885424311,5.75848497,179.22,179.14,3.26]
[1753885424519,5.75848497,179.2,179.14,3.26]
[1753885424721,3.15,179.19,179.14,3.26]
[1753885424920,3.15,179.16,179.14,3.26]
[1753885425120,3.15,179.16,179.15,3.26]
[1753885426222,8.7316,179.16,179.15,3.26]
[1753885426420,3.15,179.14,179.13,104.2]
[1753885427014,3.15,179.14,179.13,107.46]
[1753885427420,8.7322,179.14,179.13,104.2]
[1753885428328,3.15,179.14,179.13,104.2]
[1753885428513,11.1591,179.23,179.13,107.46]
[1753885428718,3.15,179.18,179.14,3.26]
[1753885428914,3.15,179.17,179.15,3.26]
[1753885429223,3.15,179.15,179.14,3.26]
[1753885429418,3.5350396,179.19,179.14,3.26]
[1753885429726,3.15,179.18,179.14,3.26]
[1753885430022,3.15,179.23,179.15,3.5350396]
[1753885430212,3.15,179.23,179.16,3.26]
[1753885430521,3.15,179.23,179.2,5.5803]
[1753885430922,3.15,179.23,179.22,3.26]
[1753885431223,8.7295,179.23,179.19,5.5806]
[1753885431423,3.15,179.22,179.2,3.26]
[1753885431620,3.15,179.22,179.21,3.26]
[1753885432322,8.7297,179.22,179.21,3.26]
[1753885432514,5.5797,179.22,179.2,3.26]
[1753885432723,3.15,179.21,179.19,3.26]
[1753885432918,3.15,179.21,179.2,3.26]
[1753885433314,3.15,179.23,179.2,3.26]
[1753885433518,3.15,179.23,179.21,3.26]
[1753885434322,3.15,179.23,179.19,107.44]
[1753885434522,3.15,179.23,179.19,104.18]
[1753885434716,3.15,179.18,179.17,3.26]
[1753885434925,3.15,179.19,179.14,107.44]
[1753885435123,3.15,179.19,179.14,109.762]
[1753885435323,5.5813,179.17,179.15,3.26]
[1753885435525,3.15,179.19,179.16,5.5814]
[1753885435725,3.15,179.19,179.18,3.26]
[1753885435925,3.5350396,179.22,179.18,3.26]
[1753885435926,8.7306,179.2,179.18,3.26]
[1753885436125,3.15,179.19,179.18,3.26]
[1753885436618,3.5350396,179.22,179.18,3.26]
[1753885436816,3.15,179.21,179.2,3.26]
[1753885437723,6.6850396,179.21,179.06,375.36]
[1753885437924,3.15,179.15,179.08,3.26]
[1753885438229,3.15,179.15,179.09,3.5350396]
[1753885438522,3.1,179.14,179.1,3.26]
[1753885438927,3.1,179.14,179.13,3.29]
[1753885439224,3.1,179.19,179.14,3.29]
[1753885439520,3.1,179.18,179.15,3.29]
[1753885439921,8.6815,179.17,179.15,3.29]
[1753885440116,3.1,179.16,179.15,3.29]
[1753885440622,8.681,179.18,179.12,104.28]
[1753885440926,3.5350396,179.21,179.14,3.29]
[1753885441129,5.5805,179.2,179.14,3.29]
[1753885442231,3.1,179.18,179.13,3.5350396]
[1753885442430,3.5350396,179.22,179.16,3.29]
[1753885442627,3.1,179.17,179.16,8.8714]
[1753885442828,3.1,179.19,179.13,3.29]
[1753885443021,3.1,179.17,179.14,104.28]
[1753885443222,3.1,179.15,179.14,104.28]
[1753885443433,8.6819,179.15,179.14,104.28]
[1753885443637,3.1,179.15,179.14,104.28]
[1753885443935,3.1,179.15,179.14,107.57]
[1753885444125,3.1,179.15,179.14,104.28]
[1753885444636,3.1,179.15,179.14,107.57]
[1753885444928,3.5350396,179.18,179.14,104.28]
[1753885445132,3.1,179.15,179.14,107.57]
[1753885445629,3.1,179.17,179.15,3.29]
[1753885446031,3.1,179.18,179.17,3.29]
[1753885447626,3.5350396,179.2,179.14,104.28]
[1753885447826,3.1,179.18,179.15,3.29]
[1753885448026,3.5350396,179.18,179.12,3.29]
[1753885448228,3.1,179.17,179.12,107.51]
[1753885448522,3.1,179.17,179.12,113.0925]
[1753885448828,3.1,179.15,179.12,104.22]
[1753885449032,5.583,179.12,179.09,5.5837]
[1753885449331,3.1,179.11,179.07,104.26]
[1753885449532,5.584,179.09,179.07,104.26]
[1753885449836,3.1,179.11,179.07,107.55]
[1753885450027,3.1,179.11,179.07,104.26]
[1753885450232,3.1,179.08,179.07,104.26]
[1753885450437,3.1,179.07,179.05,113.1749]
[1753885450634,3.1,179.07,179.05,104.3]
[1753885450829,3.1,179.06,179.05,104.3]
[1753885451127,3.1,179.04,179.03,104.32]
[1753885451824,3.1,179.04,179.03,109.9057]
[1753885452028,3.1,179.04,179.03,104.32]
[1753885452328,3.1,179.03,178.98,3.29]
[1753885452536,3.1,179.01,178.96,107.61]
[1753885452735,3.1,179.01,178.97,3.29]
[1753885453230,3.1,179.01,178.98,3.29]
[1753885453429,3.1,179.0,178.98,3.29]
[1753885453735,3.1,179.01,178.97,3.29]
[1753885453936,3.1,178.99,178.97,3.29]
[1753885454131,3.1,178.99,178.97,8.8773]
[1753885454326,3.1,178.99,178.98,3.29]
[1753885454524,5.76570946,179.02,178.98,3.29]
[1753885454728,3.1,179.0,178.98,8.8769]
[1753885454928,3.1,179.03,178.97,3.29]
[1753885455133,3.1,179.03,178.96,110.08570946]
[1753885455529,3.1,179.03,179.02,3.29]
[1753885455726,3.1,179.07,179.02,104.28]
[1753885455935,3.1,179.06,179.04,3.29]
[1753885456134,3.1,179.05,179.02,104.28]
[1753885456535,3.1,179.05,179.02,107.57]
[1753885456842,3.1,179.04,179.02,113.1559]
[1753885457326,5.76570946,179.06,179.03,3.29]
[1753885457635,5.76570946,179.06,179.04,3.29]
[1753885457636,3.1,179.06,179.04,3.29]
[1753885457838,3.1,179.06,179.03,3.29]
[1753885458034,3.1,179.07,179.02,104.28]
[1753885458338,3.1,179.05,179.02,104.28]
[1753885458534,3.1,179.04,179.02,107.57]
[1753885458938,3.1,179.05,179.02,104.28]
[1753885459443,3.1,179.03,179.02,104.28]
[1753885459838,5.5862,179.02,178.98,109.927]
[1753885460138,3.1,179.03,178.98,104.34]
[1753885460533,3.1,179.01,178.98,104.34]
[1753885460936,5.76570946,179.02,179.0,3.29]
[1753885461240,3.1,179.07,178.99,3.29]
[1753885461534,3.1,179.01,178.98,104.34]
[1753885461742,3.1,178.99,178.98,104.34]
[1753885461938,3.1,178.98,178.96,3.29]
[1753885462240,3.1,178.97,178.94,104.34]
[1753885462537,3.1,178.96,178.94,107.63]
[1753885462844,8.86570946,179.0,178.95,3.29]
[1753885463029,3.1,179.0,178.95,3.29]
[1753885463336,3.1,179.01,178.94,104.34]
[1753885463533,3.1,179.01,178.99,3.29]
[1753885464140,3.1,179.02,179.0,3.29]
[1753885464650,3.1,179.01,179.0,3.29]
[1753885465239,3.1,179.01,178.91,3.29]
[1753885465440,5.76570946,178.98,178.92,104.34]
[1753885465642,5.5877,178.97,178.93,5.5886]
[1753885465845,3.1,178.96,178.94,3.29]
[1753885466437,5.5879,178.96,178.92,104.34]
[1753885466642,3.1,178.94,178.93,3.29]
[1753885466941,3.1,178.95,178.93,3.29]
[1753885467443,8.6882,178.95,178.92,104.34]
[1753885467634,3.1,178.93,178.92,104.34]
[1753885468734,8.6888,178.93,178.92,104.34]
[1753885468933,5.76570946,178.94,178.88,3.04]
[1753885469137,3.02,178.92,178.88,3.04]
[1753885469336,5.5896,178.91,178.88,3.04]
[1753885469645,3.02,178.9,178.88,3.04]
[1753885469943,3.02,178.9,178.88,8.6303]
[1753885470444,3.02,178.89,178.87,107.34]
[1753885470939,3.02,178.89,178.87,104.3]
[1753885471143,3.02,178.91,178.89,3.04]
[1753885471340,4.86929241,178.9,178.86,104.3]
[1753885471540,4.86920463,178.89,178.87,8.6304]
[1753885471741,4.86920463,178.88,178.87,5.5904]
[1753885471935,4.86920463,178.88,178.86,104.3]
[1753885472141,4.869871,178.87,178.8,226.2044636]
[1753885472442,3.02,178.85,178.83,3.04]
[1753885472738,4.869871,178.84,178.83,3.04]
[1753885473640,7.88191729,178.84,178.83,3.04]
[1753885473841,7.88191729,178.84,178.83,8.6319]
[1753885474146,4.86191729,178.84,178.83,8.6319]
[1753885475237,7.88191729,178.84,178.83,8.6319]
[1753885475438,7.88191729,178.84,178.82,5.5921]
[1753885475741,3.02,178.82,178.8,124.9644636]
[1753885475933,4.85575865,178.81,178.78,0.97174132]
[1753885476138,3.02,178.79,178.77,375.54]
[1753885476342,4.85279835,178.78,178.77,104.32]
[1753885476540,12.51068849,178.78,178.77,104.32]
[1753885476845,9.49068849,178.78,178.77,107.36]
[1753885477242,9.49068849,178.78,178.77,8.6338]
[1753885477446,9.48024262,178.78,178.77,8.6338]
[1753885478039,4.85279835,178.78,178.77,8.6338]
[1753885478437,9.48024262,178.78,178.77,8.6338]
[1753885478743,12.50024262,178.78,178.76,8.634]
[1753885478941,4.85279835,178.77,178.76,8.634]
[1753885479139,7.87279835,178.77,178.76,5.594]
[1753885479335,12.50024262,178.77,178.75,3.04]
[1753885479545,4.85279835,178.76,178.75,3.04]
[1753885480348,4.85279835,178.76,178.75,8.6344]
[1753885480938,7.87279835,178.76,178.75,8.6344]
[1753885481152,7.87279835,178.76,178.74,109.9347]
[1753885481352,4.85279835,178.75,178.74,109.9347]
[1753885481646,4.85279835,178.75,178.74,112.9747]
[1753885483644,9.835e-05,178.75,178.74,112.9747]
[1753885484144,4.62744427,178.8,178.78,3.04]
[1753885484344,4.62744427,178.8,178.79,104.36]
[1753885484545,4.62744427,178.8,178.79,107.4]
[1753885484747,4.62744427,178.81,178.8,5.5928]
[1753885484949,7.64744427,178.81,178.8,5.5928]
[1753885485644,3.02,178.81,178.8,8.6328]
[1753885485842,9.30491564,178.84,178.83,5.5919]
[1753885486250,9.30491564,178.86,178.83,3.04]
[1753885486460,3.02,178.85,178.84,5.5915]
[1753885486950,3.02,178.85,178.83,5.5918]
[1753885487153,3.02,178.84,178.82,104.38]
[1753885487348,7.6370876,178.83,178.82,104.38]
[1753885487557,3.02,178.83,178.82,104.38]
[1753885488161,3.02,178.82,178.79,109.9729]
[1753885488454,3.02,178.8,178.79,104.38]
[1753885489349,7.6387015,178.8,178.79,104.38]
[1753885489554,3.02,178.8,178.76,3.04]
[1753885489848,4.62049193,178.79,178.75,104.38]
[1753885490052,3.02,178.77,178.75,3.04]
[1753885490249,4.62049193,178.79,178.75,3.04]
[1753885490454,3.02,178.8,178.75,3.04]
[1753885490843,4.62049193,178.8,178.76,3.04]
[1753885491043,3.02,178.79,178.74,107.42]
[1753885491254,4.62049193,178.79,178.74,107.42]
[1753885491455,3.02,178.78,178.75,3.04]
[1753885491652,3.02,178.78,178.76,3.04]
[1753885492154,3.02,178.78,178.76,8.6338]
[1753885492556,3.02,178.77,178.76,8.6338]
[1753885492751,3.02,178.77,178.76,3.04]
[1753885493349,4.62049193,178.78,178.74,107.42]
[1753885493551,4.62049193,178.77,178.74,104.38]
[1753885493754,10.38620139,178.76,178.71,8.6355]
[1753885493958,3.02,178.73,178.69,107.42]
[1753885494257,7.64049193,178.73,178.7,3.04]
[1753885494456,4.62049193,178.74,178.7,3.04]
[1753885494661,7.64049193,178.74,178.7,3.04]
[1753885494964,7.64049193,178.74,178.71,5.5956]
[1753885495156,7.64049193,178.74,178.7,3.04]
[1753885495157,3.02,178.71,178.7,3.04]
[1753885495356,3.02,178.71,178.69,104.38]
[1753885495554,4.62049193,178.72,178.69,104.38]
[1753885495756,3.02,178.71,178.7,3.04]
[1753885496056,4.58624182,178.71,178.7,3.04]
[1753885496458,4.182e-05,178.71,178.7,8.80570946]
[1753885496765,4.62049193,178.75,178.71,3.04]
[1753885497059,7.64049193,178.75,178.71,3.04]
[1753885497256,4.62049193,178.75,178.7,5.76570946]
[1753885497451,3.02,178.79,178.74,3.04]
[1753885497656,8.6122,178.82,178.76,3.04]
[1753885497858,3.02,178.82,178.76,3.04]
[1753885498760,5.593,178.8,178.77,5.5937]
[1753885498955,3.16,178.79,178.76,3.04]
[1753885499156,3.16,178.77,178.76,3.04]
[1753885499561,3.16,178.77,178.76,5.5939]
[1753885499756,86.43992916,178.91,178.74,3.26]
[1753885499757,5.76570946,178.81,178.74,3.26]
[1753885499965,5.76570946,178.81,178.75,3.26]
[1753885500157,3.16,178.8,178.76,3.26]
[1753885500462,3.16,178.8,178.75,3.26]
[1753885500665,3.16,178.8,178.77,5.5935]
[1753885500666,5.593,178.8,178.77,5.5935]
[1753885500863,3.16,178.82,178.75,3.26]
[1753885501163,86.43992916,178.91,178.75,3.26]
[1753885501164,5.5934,178.79,178.75,8.8542]
[1753885501365,5.5934,178.79,178.76,3.26]
[1753885501366,3.16,178.79,178.76,3.26]
[1753885501663,5.5912,178.86,178.78,3.26]
[1753885501866,86.43992916,178.91,178.72,11.1903]
[1753885501867,4.0136702,178.85,178.81,3.26]
[1753885502159,3.16,178.86,178.84,3.26]
[1753885502355,3.16,178.87,178.78,5.76570946]
[1753885502558,4.01557989,178.86,178.8,3.26]
[1753885502760,3.16,178.88,178.81,3.26]
[1753885502960,4.01532709,178.87,178.82,5.76570946]
[1753885503159,4.01532709,178.86,178.84,3.26]
[1753885503354,3.16,178.87,178.86,3.26]
[1753885503565,7.1778648,178.87,178.86,3.26]
[1753885503759,3.16,178.89,178.84,104.5]
[1753885503960,3.16,178.91,178.85,3.26]
[1753885504155,4.01735632,178.9,178.86,5.76570946]
[1753885504458,3.16,178.95,178.88,3.26]
[1753885504653,3.16,178.93,178.85,3.26]
[1753885504856,3.16,178.86,178.83,3.26]
[1753885505066,5.76570946,178.88,178.82,107.76]
[1753885505362,3.16,178.85,178.82,107.76]
[1753885505564,3.16,178.87,178.82,104.5]
[1753885505755,3.16,178.87,178.82,107.76]
[1753885505960,5.76570946,178.86,178.82,104.5]
[1753885506262,5.76570946,178.84,178.79,3.26]
[1753885506464,3.16,178.81,178.78,104.54]
[1753885506765,3.16,178.79,178.72,3.26]
[1753885506967,3.16,178.77,178.7,3.26]
[1753885507160,3.16,178.77,178.72,3.26]
[1753885507556,3.16,178.73,178.72,3.26]
[1753885507765,3.16,178.73,178.71,104.58]
[1753885507766,3.16,178.75,178.71,104.58]
[1753885507963,11.36050946,178.74,178.7,5.5959]
[1753885508270,3.16,178.72,178.7,8.8559]
[1753885508467,3.16,178.72,178.7,3.26]
[1753885508666,5.76570946,178.74,178.71,8.8556]
[1753885508864,3.16,178.74,178.71,3.26]
[1753885509166,3.16,178.74,178.72,3.26]
[1753885509562,3.16,178.74,178.67,486.04570946]
[1753885509563,3.16,178.75,178.68,3.26]
[1753885510066,3.16,178.72,178.7,8.8557]
[1753885510268,3.16,178.72,178.7,3.26]
[1753885510462,3.16,178.73,178.69,5.5961]
[1753885510672,3.16,178.71,178.67,378.94]
[1753885511062,3.16,178.71,178.66,104.64]
[1753885511378,5.76570946,178.68,178.63,104.66]
[1753885511872,8.92570946,178.68,178.63,104.66]
[1753885512066,8.92570946,178.68,178.65,3.26]
[1753885512260,3.16,178.67,178.65,5.5974]
[1753885512462,3.16,178.69,178.66,3.26]
[1753885512672,3.16,178.69,178.64,3.26]
[1753885512868,5.76570946,178.68,178.63,104.66]
[1753885513067,3.16,178.67,178.63,104.66]
[1753885513268,3.16,178.67,178.61,3.26]
[1753885513467,5.5972,178.66,178.62,5.5982]
[1753885513671,3.16,178.65,178.61,3.26]
[1753885514068,3.16,178.65,178.62,5.5984]
[1753885514374,5.76570946,178.66,178.61,3.26]
[1753885514571,3.16,178.62,178.61,3.26]
[1753885514766,5.76570946,178.75,178.59,104.72]
[1753885514767,5.76570946,178.64,178.59,104.72]
[1753885514973,3.16,178.6,178.59,104.72]
[1753885515269,3.16,178.62,178.59,107.98]
[1753885515470,3.16,178.61,178.59,104.72]
[1753885515668,8.7588,178.61,178.59,104.72]
[1753885515869,3.16,178.6,178.59,104.72]
[1753885516370,3.16,178.58,178.55,107.94]
[1753885516675,3.16,178.57,178.55,107.94]
[1753885516865,8.92570946,178.6,178.58,3.26]
[1753885517063,3.16,178.6,178.58,3.26]
[1753885517464,3.16,178.59,178.58,3.26]
[1753885517664,5.76570946,178.62,178.58,3.26]
[1753885517866,3.16,178.59,178.52,3.26]
[1753885518071,3.16,178.57,178.53,110.2811]
[1753885518270,3.16,178.56,178.54,3.26]
[1753885518578,3.16,178.56,178.53,113.5411]
[1753885518779,3.16,178.56,178.54,8.8609]
[1753885519077,3.16,178.55,178.53,104.68]
[1753885519278,3.16,178.54,178.53,104.68]
[1753885519577,5.76570946,178.54,178.5,3.26]
[1753885520075,5.76570946,178.54,178.49,107.94]
[1753885520471,5.76570946,178.54,178.5,3.26]
[1753885520777,5.6014,178.53,178.5,3.26]
[1753885520975,5.76570946,178.54,178.49,104.68]
[1753885521175,5.76570946,178.54,178.49,107.94]
[1753885521375,3.16,178.52,178.49,107.94]
[1753885521679,3.16,178.51,178.49,107.94]
[1753885522178,3.16,178.51,178.5,3.26]
[1753885522473,3.16,178.51,178.49,107.94]
[1753885523077,3.16,178.5,178.49,104.68]
[1753885523380,3.16,178.51,178.49,104.68]
[1753885523582,3.16,178.51,178.49,107.94]
[1753885524169,5.76570946,178.52,178.5,3.26]
[1753885524476,8.92570946,178.52,178.5,3.26]
[1753885524672,8.92570946,178.52,178.49,110.2823]
[1753885524673,3.16,178.51,178.49,104.68]
[1753885524979,3.16,178.51,178.49,107.94]
[1753885525476,5.76570946,178.56,178.5,3.26]
[1753885525684,8.92570946,178.56,178.5,3.26]
[1753885525874,8.92570946,178.58,178.55,3.26]
[1753885526077,3.16,178.56,178.53,3.26]
[1753885526266,3.16,178.56,178.49,104.68]
[1753885526474,5.76570946,178.58,178.55,3.26]
[1753885526780,3.16,178.56,178.54,3.26]
[1753885527275,8.92570946,178.58,178.49,104.68]
[1753885527476,8.92570946,178.58,178.56,3.26]
[1753885527782,8.7584,178.63,178.59,5.5991]
[1753885527981,3.16,178.63,178.6,3.26]
[1753885528178,5.76570946,178.64,178.6,3.26]
[1753885528377,3.16,178.61,178.6,3.26]
[1753885528578,3.16,178.61,178.59,2.99]
[1753885529079,5.76570946,178.64,178.6,2.99]
[1753885529378,3.09,178.62,178.6,2.99]
[1753885529580,5.5984,178.63,178.61,2.99]
[1753885529783,3.09,178.62,178.59,2.99]
[1753885530075,5.76570946,178.64,178.55,2.99]
[1753885530274,5.76570946,178.68,178.58,5.76570946]
[1753885530480,3.09,178.67,178.6,2.99]
[1753885530681,8.6879,178.64,178.61,2.99]
[1753885530878,3.09,178.64,178.62,2.99]
[1753885531276,8.6879,178.64,178.62,2.99]
[1753885531685,3.09,178.64,178.62,2.99]
[1753885531878,3.09,178.67,178.59,2.99]
[1753885532271,5.5976,178.65,178.61,5.5987]
[1753885532475,5.5976,178.65,178.62,2.99]
[1753885532476,3.09,178.64,178.62,2.99]
[1753885532776,8.6874,178.66,178.63,2.99]
[1753885532972,5.76570946,178.68,178.63,2.99]
[1753885533169,3.09,178.65,178.63,2.99]
[1753885533374,8.6876,178.65,178.63,2.99]
[1753885533670,3.09,178.65,178.64,2.99]
[1753885533870,8.6878,178.65,178.61,2.99]
[1753885534081,3.09,178.64,178.62,2.99]
[1753885534274,3.09,178.64,178.58,5.76570946]
[1753885534476,8.6878,178.65,178.63,2.99]
[1753885534774,3.09,178.65,178.63,2.99]
[1753885535079,3.09,178.65,178.58,5.76570946]
[1753885535080,3.09,178.65,178.58,2.99]
[1753885535281,3.09,178.62,178.59,2.99]
[1753885535677,3.09,178.62,178.56,5.76570946]
[1753885535678,3.09,178.62,178.6,2.99]
[1753885535872,3.09,178.62,178.57,2.99]
[1753885536078,3.09,178.61,178.59,2.99]
[1753885536884,8.6888,178.61,178.59,2.99]
[1753885537081,3.09,178.72,178.57,2.99]
[1753885537287,3.09,178.65,178.57,2.99]
[1753885538378,5.76570946,178.67,178.57,2.99]
[1753885538574,3.09,178.67,178.59,2.99]
[1753885538983,5.5979,178.64,178.62,2.99]
[1753885539185,3.09,178.66,178.63,2.99]
[1753885539374,5.76570946,178.69,178.64,2.99]
[1753885539574,8.6876,178.65,178.64,2.99]
[1753885540483,3.09,178.69,178.64,2.99]
[1753885540695,3.09,178.73,178.64,2.99]
[1753885540880,3.09,178.71,178.64,2.99]
[1753885541187,3.09,178.71,178.66,2.99]
[1753885541382,3.09,178.71,178.69,2.99]
[1753885541383,8.6859,178.71,178.69,2.99]
[1753885541577,5.76570946,178.74,178.7,2.99]
[1753885541780,3.09,178.72,178.7,2.99]
[1753885541976,3.09,178.72,178.65,5.76570946]
[1753885542190,86.91393922,178.76,178.69,5.76570946]
[1753885542379,86.91393922,178.76,178.72,5.5951]
[1753885542589,3.09,178.76,178.69,5.76570946]
[1753885542782,3.09,178.77,178.7,2.99]
[1753885542981,3.09,178.77,178.7,5.5959]
[1753885543182,5.5949,178.74,178.73,2.99]
[1753885543486,3.09,178.74,178.69,5.76570946]
[1753885543888,3.09,178.74,178.7,2.99]
[1753885544089,3.09,178.74,178.71,2.99]
[1753885544280,3.09,178.74,178.72,2.99]
[1753885544485,3.09,178.74,178.69,5.76570946]
[1753885544684,3.09,178.74,178.72,2.99]
[1753885546291,5.595,178.73,178.72,2.99]
[1753885547095,8.685,178.73,178.7,2.99]
[1753885547294,3.09,178.73,178.66,2.99]
[1753885547796,8.85570946,178.74,178.66,2.99]
[1753885547997,3.09,178.74,178.66,5.76570946]
[1753885548195,3.09,178.74,178.67,2.99]
[1753885548390,5.5951,178.73,178.7,2.99]
[1753885548797,5.5948,178.74,178.71,2.99]
[1753885549198,3.09,178.74,178.68,5.76570946]
[1753885549495,5.76570946,178.76,178.71,2.99]
[1753885549795,5.5948,178.74,178.72,2.99]
[1753885549993,5.5948,178.74,178.73,2.99]
[1753885550394,5.5952,178.73,178.71,2.99]
[1753885550693,8.85570946,178.76,178.69,2.99]
[1753885550889,5.76570946,178.78,178.7,5.76570946]
[1753885551092,5.76570946,178.78,178.71,2.99]
[1753885551093,3.09,178.78,178.71,2.99]
[1753885551297,5.76570946,178.83,178.74,5.76570946]
[1753885551498,3.09,178.82,178.75,5.5942]
[1753885551694,3.09,178.82,178.76,2.99]
[1753885552095,5.5932,178.79,178.77,2.99]
[1753885552296,3.09,178.79,178.74,5.76570946]
[1753885552499,3.09,178.82,178.75,2.99]
[1753885553196,3.09,178.82,178.77,2.99]
[1753885553393,5.76570946,178.83,178.77,2.99]
[1753885553588,5.5932,178.79,178.78,2.99]
[1753885553792,5.76570946,178.83,178.74,2.99]
[1753885553793,3.09,178.78,178.74,2.99]
[1753885554000,3.09,178.78,178.71,2.99]
[1753885554201,5.76570946,178.79,178.73,5.5947]
[1753885554402,3.09,178.79,178.76,2.99]
[1753885554604,3.09,178.79,178.7,5.76570946]
[1753885554605,3.09,178.79,178.77,2.99]
[1753885554802,3.09,178.81,178.78,2.99]
[1753885555102,3.09,178.79,178.78,2.99]
[1753885556003,3.09,178.79,178.75,2.99]
[1753885556201,3.09,178.79,178.71,2.99]
[1753885556202,3.09,178.78,178.71,2.99]
[1753885556396,5.5939,178.77,178.71,2.99]
[1753885556702,3.09,178.78,178.71,2.99]
[1753885556904,5.76570946,178.8,178.71,2.99]
[1753885557104,5.5934,178.79,178.71,2.99]
[1753885557401,8.85570946,178.8,178.71,2.99]
[1753885557598,5.5938,178.78,178.71,2.99]
[1753885557801,3.09,178.79,178.73,5.5948]
[1753885558000,3.09,178.78,178.75,2.99]
[1753885558300,3.09,178.79,178.73,2.99]
[1753885558996,5.5936,178.78,178.75,3.02]
[1753885559198,5.5936,178.78,178.76,3.02]
[1753885559395,5.5936,178.78,178.7,5.76570946]
[1753885559396,5.5929,178.8,178.78,3.02]
[1753885559599,5.5929,178.8,178.79,3.02]
[1753885560204,8.6329,178.8,178.72,5.76570946]
[1753885560395,3.04,178.79,178.77,3.02]
[1753885560600,3.04,178.78,178.76,3.02]
[1753885560800,3.04,178.79,178.71,5.76570946]
[1753885561000,5.5935,178.78,178.72,3.02]
[1753885561201,3.04,178.79,178.73,5.5948]
[1753885561399,3.04,178.8,178.72,3.02]
[1753885561799,5.76570946,178.83,178.77,5.5935]
[1753885562105,8.6328,178.8,178.79,3.02]
[1753885562302,3.04,178.79,178.77,3.02]
[1753885562806,8.6334,178.79,178.77,3.02]
[1753885563197,3.04,178.82,178.77,3.02]
[1753885563505,3.04,178.81,178.74,3.02]
[1753885563705,3.04,178.8,178.77,3.02]
[1753885564006,8.633,178.8,178.78,3.02]